fUST/lending_fUST_20260107
["ID","MTS","AMOUNT","RATE_DAILY","PERIOD"]
[400635109,1767755443795,-151.0,0.000244,2]
[400635110,1767755443805,-151.0,0.000244,2]
[400635111,1767755443815,-235.330343,0.000244,2]
[400635112,1767755443824,-2711.140838,0.000244,2]
[400635113,1767755443834,-2711.140838,0.000244,2]
[400635114,1767755443843,-2711.140838,0.000244,2]
[400635115,1767755443853,-2711.140838,0.000244,2]
[400635116,1767755443863,-2300.0,0.00024429,2]
[400635117,1767755443874,-8469.53466117,0.00024508,2]
[400635118,1767755443884,-2671.0,0.00024513,2]
[400635119,1767755443894,-500.0,0.00024548,2]
[400635120,1767755443903,-2000.0,0.00024574,7]
[400635121,1767755443912,-900.0,0.00024658,2]
[400635122,1767755443922,-200.0,0.00024658,2]
[400635123,1767755443932,-500.0,0.00024658,2]
[400635124,1767755443941,-2671.0,0.00024694,2]
[400635125,1767755443951,-2385.21,0.000247,7]
[400635126,1767755443960,-2300.0,0.00024703,2]
[400635127,1767755443970,-2300.0,0.00024759,2]
[400635128,1767755443979,-519.1,0.00024778,2]
[400635129,1767755443988,-500.0,0.00024795,2]
[400635130,1767755443998,-3868.83466875,0.000248,2]
[400635131,1767755444008,-415.57690444,0.00024803,2]
[400635132,1767755444018,-3058.874777,0.00024869,2]
[400635133,1767755444028,-1041.66666667,0.000249,7]
[400635134,1767755444038,-2750.64,0.000249,14]
[400635135,1767755444048,-151.0,0.000249,7]
[400635136,1767755444057,-151.0,0.000249,7]
[400635137,1767755444067,-151.0,0.000249,7]
[400635138,1767755444075,-151.0,0.000249,7]
[400635139,1767755444084,-151.0,0.000249,7]
[400635140,1767755444095,-151.0,0.000249,7]
[400635141,1767755444105,-183.522133,0.000249,7]
[400635142,1767755444114,-151.0,0.000249,7]
[400635143,1767755444123,-151.0,0.000249,7]
[400635144,1767755444134,-292.141919,0.000249,7]
[400635145,1767755444144,-151.0,0.000249,7]
[400635146,1767755444154,-151.0,0.000249,7]
[400635147,1767755444163,-151.0,0.000249,7]
[400635148,1767755444172,-151.0,0.000249,7]
[400635149,1767755444182,-165.083309,0.000249,7]
[400635150,1767755444192,-151.0,0.000249,7]
[400635151,1767755444201,-153.683464,0.000249,7]
[400635152,1767755444211,-151.0,0.000249,7]
[400635153,1767755444220,-151.0,0.000249,7]
[400635154,1767755444229,-151.0,0.000249,7]
[400635155,1767755444238,-158.997356,0.000249,7]
[400635156,1767755444247,-151.0,0.000249,7]
[400635157,1767755444256,-158.997356,0.000249,7]
[400635158,1767755444265,-151.0,0.000249,7]
[400635159,1767755444274,-158.997356,0.000249,7]
[400635160,1767755444283,-293.012089,0.000249,7]
[400635161,1767755444292,-158.997356,0.000249,7]
[400635162,1767755444301,-151.0,0.000249,7]
[400635163,1767755444310,-151.0,0.000249,7]
[400635164,1767755444320,-151.0,0.000249,7]
[400635165,1767755444328,-151.0,0.000249,7]
[400635166,1767755444337,-151.0,0.000249,7]
[400635167,1767755444347,-500.0,0.000249,7]
[400635168,1767755444356,-500.0,0.000249,7]
[400635169,1767755444366,-500.0,0.000249,7]
[400635170,1767755444376,-500.0,0.000249,7]
[400635171,1767755444385,-151.0,0.000249,7]
[400635172,1767755444394,-151.0,0.000249,7]
[400635173,1767755444404,-222.050816,0.000249,7]
[400635174,1767755444413,-151.0,0.000249,7]
[400635175,1767755444422,-151.0,0.000249,7]
[400635176,1767755444431,-151.0,0.000249,7]
[400635177,1767755444440,-151.0,0.000249,7]
[400635178,1767755444450,-151.0,0.000249,7]
[400635179,1767755444459,-151.0,0.000249,7]
[400635180,1767755444468,-263.532421,0.000249,7]
[400635182,1767755444477,-151.0,0.000249,7]
[400635183,1767755444487,-151.0,0.000249,7]
[400635184,1767755444496,-151.0,0.000249,7]
[400635185,1767755444505,-151.0,0.000249,7]
[400635186,1767755444514,-151.0,0.000249,7]
[400635187,1767755444524,-151.0,0.000249,7]
[400635188,1767755444534,-156.273726,0.000249,7]
[400635189,1767755444543,-2711.140838,0.000249,7]
[400635190,1767755444552,-156.273726,0.000249,7]
[400635191,1767755444562,-2711.140838,0.000249,7]
[400635192,1767755444571,-156.273726,0.000249,7]
[400635193,1767755444582,-2711.140838,0.000249,7]
[400635194,1767755444594,-156.273726,0.000249,7]
[400635195,1767755444604,-2711.140838,0.000249,7]
[400635196,1767755444613,-324.878871,0.000249,7]
[400635197,1767755444623,-324.878871,0.000249,7]
[400635198,1767755444632,-324.878871,0.000249,7]
[400635199,1767755444642,-324.878871,0.000249,7]
[400635200,1767755444651,-151.0,0.000249,7]
[400635201,1767755444660,-151.0,0.000249,7]
[400635202,1767755444669,-151.0,0.000249,7]
[400635203,1767755444682,-349.207266,0.000249,7]
[400635204,1767755444691,-349.207266,0.000249,7]
[400635205,1767755444700,-349.207266,0.000249,7]
[400635206,1767755444710,-349.207266,0.000249,7]
[400635207,1767755444719,-401.67446,0.000249,7]
[400635208,1767755444728,-401.67446,0.000249,7]
[400635209,1767755444738,-401.67446,0.000249,7]
[400635210,1767755444747,-401.67446,0.000249,7]
[400635211,1767755444757,-883.518597,0.000249,7]
[400635212,1767755444766,-883.518597,0.000249,7]
[400635213,1767755444775,-883.518597,0.000249,7]
[400635214,1767755444784,-883.518597,0.000249,7]
[400635215,1767755444793,-364.504181,0.000249,7]
[400635216,1767755444802,-364.504181,0.000249,7]
[400635217,1767755444811,-364.504181,0.000249,7]
[400635218,1767755444821,-364.504181,0.000249,7]
[400635219,1767755444830,-179.448151,0.000249,7]
[400635220,1767755444839,-308.020473,0.000249,7]
[400635221,1767755444848,-308.020473,0.000249,7]
[400635222,1767755444856,-308.020473,0.000249,7]
[400635223,1767755444865,-308.020473,0.000249,7]
[400635224,1767755444875,-151.0,0.000249,7]
[400635225,1767755444884,-310.549692,0.000249,7]
[400635226,1767755444893,-310.549692,0.000249,7]
[400635227,1767755444902,-310.549692,0.000249,7]
[400635228,1767755444911,-310.549692,0.000249,7]
[400635229,1767755444920,-210.445143,0.000249,7]
[400635230,1767755444929,-210.445143,0.000249,7]
[400635231,1767755444938,-210.445143,0.000249,7]
[400635232,1767755444947,-246.267723,0.000249,7]
[400635233,1767755444956,-210.445143,0.000249,7]
[400635234,1767755444965,-246.267723,0.000249,7]
[400635235,1767755444974,-246.267723,0.000249,7]
[400635236,1767755444983,-246.267723,0.000249,7]
[400635237,1767755444992,-342.903353,0.000249,7]
[400635238,1767755445098,-177.524366,0.000249,7]
[400635239,1767755445108,-342.903353,0.000249,7]
[400635240,1767755445117,-342.903353,0.000249,7]
[400635241,1767755445126,-342.903353,0.000249,7]
[400635242,1767755445136,-151.0,0.000249,7]
[400635243,1767755445145,-2600.536544,0.000249,7]
[400635244,1767755445154,-2600.536544,0.000249,7]
[400635245,1767755445164,-449.104289,0.000249,7]
[400635246,1767755445175,-430.552519,0.000249,7]
[400635247,1767755445184,-631130.268203,0.000249,2]
[400635248,1767755445194,-449.104289,0.000249,7]
[400635249,1767755445205,-430.552519,0.000249,7]
[400635250,1767755445216,-449.104289,0.000249,7]
[400635251,1767755445227,-430.552519,0.000249,7]
[400635252,1767755445236,-430.552519,0.000249,7]
[400635253,1767755445247,-449.104289,0.000249,7]
[400635254,1767755445257,-285.036725,0.000249,7]
[400635255,1767755445267,-285.036725,0.000249,7]
[400635256,1767755445279,-285.036725,0.000249,7]
[400635257,1767755445288,-285.036725,0.000249,7]
[400635258,1767755445297,-814.437021,0.000249,7]
[400635259,1767755445307,-814.437021,0.000249,7]
[400635260,1767755445317,-814.437021,0.000249,7]
[400635261,1767755445327,-814.437021,0.000249,7]
[400635262,1767755445336,-207.061221,0.000249,7]
[400635263,1767755445345,-151.0,0.000249,7]
[400635264,1767755445354,-151.0,0.000249,7]
[400635265,1767755445363,-151.0,0.000249,7]
[400635266,1767755445372,-151.0,0.000249,7]
[400635268,1767755445381,-151.0,0.000249,7]
[400635269,1767755445390,-151.0,0.000249,7]
[400635270,1767755445401,-151.0,0.000249,7]
[400635272,1767755445412,-151.0,0.000249,7]
[400635273,1767755445422,-2117.252513,0.000249,7]
[400635275,1767755445432,-2117.252513,0.000249,7]
[400635277,1767755445441,-2117.252513,0.000249,7]
[400635278,1767755445450,-2117.252513,0.000249,7]
[400635280,1767755445460,-292.415007,0.000249,7]
[400635282,1767755445469,-292.415007,0.000249,7]
[400635284,1767755445479,-292.415007,0.000249,7]
[400635286,1767755445488,-1270.137933,0.000249,7]
[400635288,1767755445497,-292.415007,0.000249,7]
[400635290,1767755445507,-1270.137933,0.000249,7]
[400635292,1767755445516,-151.0,0.000249,7]
[400635294,1767755445525,-1270.137933,0.000249,7]
[400635296,1767755445535,-1270.137933,0.000249,7]
[400635298,1767755445545,-391.28206,0.000249,7]
[400635300,1767755445554,-391.28206,0.000249,7]
[400635302,1767755445563,-391.28206,0.000249,7]
[400635304,1767755445573,-391.28206,0.000249,7]
[400635305,1767755445582,-164.70126,0.000249,7]
[400635307,1767755445591,-1322.532901,0.000249,7]
[400635309,1767755445600,-237.990209,0.000249,7]
[400635311,1767755445609,-1322.532901,0.000249,7]
[400635313,1767755445619,-1322.532901,0.000249,7]
[400635314,1767755445629,-151.0,0.000249,7]
[400635316,1767755445638,-1322.532901,0.000249,7]
[400635318,1767755445648,-151.0,0.000249,7]
[400635321,1767755445657,-151.0,0.000249,7]
[400635322,1767755445668,-151.0,0.000249,7]
[400635324,1767755445680,-151.0,0.000249,7]
[400635326,1767755445690,-790.205655,0.000249,7]
[400635328,1767755445699,-151.0,0.000249,2]
[400635330,1767755445708,-790.205655,0.000249,7]
[400635332,1767755445718,-151.0,0.000249,2]
[400635334,1767755445727,-790.205655,0.000249,7]
[400635336,1767755445737,-500.0,0.00024932,2]
[400635338,1767755445747,-1020.52354742,0.00025,2]
[400635340,1767755445756,-1041.66666667,0.00025,7]
[400635342,1767755445768,-540.0,0.00025044,2]
[400635344,1767755445777,-540.0,0.00025047,2]
[400635346,1767755445786,-500.0,0.00025069,2]
[400635348,1767755445795,-540.0,0.00025124,7]
[400635350,1767755445805,-2300.0,0.00025145,7]
[400635352,1767755445814,-500.0,0.00025153,7]
[400635354,1767755445823,-283.8,0.00025204,2]
[400635356,1767755445833,-250.0,0.00025205,2]
[400635358,1767755445842,-1181.07580657,0.00025205,2]
[400635360,1767755445852,-500.0,0.00025206,2]
[400635362,1767755445861,-2673.0,0.00025221,2]
[400635364,1767755445870,-1000.0,0.00025245,10]
[400635366,1767755445879,-791.0,0.00025245,10]
[400635368,1767755445888,-5000.0,0.00025297,2]
[400635370,1767755445897,-489.84,0.000253,2]
[400635372,1767755445906,-322.65,0.000253,7]
[400635374,1767755445915,-303.84,0.000253,7]
[400635376,1767755445924,-500.0,0.00025343,2]
[400635378,1767755445932,-540.0,0.0002536,7]
[400635379,1767755445942,-2000.0,0.00025386,7]
[400635381,1767755445951,-540.0,0.00025393,2]
[400635383,1767755445960,-265.0,0.000254,60]
[400635385,1767755445969,-540.0,0.00025414,7]
[400635387,1767755445979,-500.0,0.0002548,2]
[400635389,1767755445988,-540.0,0.00025504,2]
[400635391,1767755445997,-2300.0,0.00025591,7]
[400635393,1767755446007,-500.0,0.00025617,2]
[400635395,1767755446016,-2671.0,0.00025716,7]
[400635397,1767755446027,-2530.52102539,0.00025726,22]
[400635399,1767755446038,-350.0,0.00025753,2]
[400635401,1767755446047,-500.0,0.00025754,2]
[400635403,1767755446056,-2673.0,0.00025802,7]
[400635405,1767755446066,-540.0,0.00025865,2]
[400635407,1767755446075,-509.34709244,0.00025891,2]
[400635409,1767755446084,-28848.38,0.000259,2]
[400635411,1767755446093,-540.0,0.00025938,2]
[400635412,1767755446103,-2385.21,0.00026,7]
[400635414,1767755446111,-1041.66666667,0.00026,7]
[400635416,1767755446121,-1019.0,0.00026,2]
[400635418,1767755446130,-540.0,0.00026075,2]
[400635420,1767755446139,-540.0,0.00026133,2]
[400635422,1767755446148,-540.0,0.00026166,2]
[400635424,1767755446157,-500.0,0.00026193,7]
[400635426,1767755446166,-2000.0,0.00026198,7]
[400635428,1767755446175,-167.77,0.000262,7]
[400635430,1767755446184,-5000.0,0.00026225,2]
[400635432,1767755446193,-540.0,0.00026242,2]
[400635434,1767755446202,-2671.0,0.00026247,2]
[400635436,1767755446211,-500.0,0.00026254,7]
[400635438,1767755446222,-450.0,0.00026301,2]
[400635440,1767755446231,-500.0,0.00026335,7]
[400635441,1767755446241,-519.1,0.00026363,2]
[400635443,1767755446250,-2750.64,0.000264,14]
[400635445,1767755446260,-181.0,0.00026411,20]
[400635447,1767755446269,-540.0,0.00026504,7]
[400635449,1767755446278,-240.213887,0.00026588,2]
[400635452,1767755446289,-500.0,0.0002662,7]
[400635454,1767755446298,-8469.53466117,0.00026642,2]
[400635456,1767755446307,-540.0,0.00026669,2]
[400635458,1767755446317,-2300.0,0.00026785,7]
[400635459,1767755446326,-322.65,0.000268,7]
[400635461,1767755446335,-303.84,0.000268,7]
[400635463,1767755446345,-451.5402904,0.00026803,2]
[400635465,1767755446355,-540.0,0.00026845,2]
[400635467,1767755446364,-550.0,0.00026849,2]
[400635469,1767755446374,-2300.0,0.0002698,7]
[400635471,1767755446384,-489.84,0.00027,2]
[400635473,1767755446394,-1019.0,0.00027,2]
[400635475,1767755446403,-2000.0,0.0002701,7]
[400635477,1767755446412,-540.0,0.00027044,2]
[400635479,1767755446423,-2300.0,0.00027081,7]
[400635481,1767755446432,-5000.0,0.00027154,2]
[400635483,1767755446442,-2845.39748282,0.00027162,25]
[400635485,1767755446452,-2300.0,0.0002717,7]
[400635487,1767755446462,-540.0,0.00027216,2]
[400635489,1767755446471,-2300.0,0.00027259,7]
[400635491,1767755446480,-2385.21,0.000273,7]
[400635493,1767755446490,-2300.0,0.00027332,7]
[400635495,1767755446499,-1615.48,0.00027397,2]
[400635497,1767755446509,-223.83334036,0.00027397,2]
[400635499,1767755446519,-650.0,0.00027397,5]
[400635501,1767755446528,-154.121516,0.00027397,7]
[400635502,1767755446537,-500.0,0.00027397,5]
[400635504,1767755446548,-514.81933417,0.00027397,5]
[400635506,1767755446558,-1000.0,0.0002777,30]
[400635508,1767755446567,-1000.0,0.0002777,30]
[400635510,1767755446577,-2000.0,0.00027821,7]
[400635512,1767755446587,-2300.0,0.00027853,7]
[400635514,1767755446596,-2300.0,0.0002787,7]
[400635516,1767755446605,-28848.38,0.000279,2]
[400635518,1767755446614,-2300.0,0.00027901,7]
[400635520,1767755446624,-1000.0,0.00027945,5]
[400635522,1767755446633,-750.0,0.00027945,5]
[400635524,1767755446643,-250.0,0.00027945,5]
[400635526,1767755446652,-250.0,0.00027945,5]
[400635528,1767755446662,-519.1,0.00027948,2]
[400635530,1767755446672,-500.0,0.00027991,7]
[400635532,1767755446688,-2750.64,0.00028,14]
[400635533,1767755446700,-1019.0,0.00028,2]
[400635535,1767755446710,-5000.0,0.00028082,2]
[400635537,1767755446720,-2875.33898822,0.000281,7]
[400635539,1767755446730,-2300.0,0.00028185,7]
[400635541,1767755446739,-2300.0,0.00028264,7]
[400635543,1767755446750,-3933.63504709,0.00028399,2]
[400635545,1767755446760,-500.0,0.00028446,7]
[400635547,1767755446770,-850.0,0.00028493,5]
[400635549,1767755446779,-1345.06654584,0.00028493,5]
[400635551,1767755446788,-350.0,0.00028493,5]
[400635553,1767755446798,-350.0,0.00028493,5]
[400635555,1767755446807,-322.65,0.000285,7]
[400635557,1767755446815,-303.84,0.000285,7]
[400635559,1767755446824,-3169.08984283,0.00028598,27]
[400635561,1767755446834,-2000.0,0.00028633,7]
[400635563,1767755446843,-2385.21,0.000287,7]
[400635564,1767755446854,-1615.48,0.00028767,4]
[400635566,1767755446863,-8469.53466117,0.00028776,2]
[400635568,1767755446872,-487.50367636,0.00028803,2]
[400635570,1767755446881,-28848.38,0.000289,2]
[400635572,1767755446890,-280.28268334,0.0002895,7]
[400635574,1767755446899,-1019.0,0.00029,2]
[400635575,1767755446908,-5000.0,0.00029011,2]
[400635577,1767755446918,-950.0,0.00029041,5]
[400635579,1767755446928,-450.0,0.00029041,5]
[400635581,1767755446937,-450.0,0.00029041,5]
[400635583,1767755446947,-2300.0,0.00029055,7]
[400635585,1767755446957,-171.0,0.00029151,33]
[400635587,1767755446967,-2673.0,0.00029184,2]
[400635589,1767755446976,-500.0,0.00029334,7]
[400635591,1767755446986,-2300.0,0.00029416,7]
[400635593,1767755446995,-2000.0,0.00029445,7]
[400635595,1767755447004,-500.0,0.00029479,7]
[400635597,1767755447013,-519.1,0.00029532,3]
[400635599,1767755447022,-2300.0,0.0002956,7]
[400635601,1767755447032,-1050.0,0.00029589,5]
[400635602,1767755447042,-550.0,0.00029589,5]
[400635604,1767755447051,-550.0,0.00029589,5]
[400635606,1767755447060,-2750.64,0.000296,14]
[400635608,1767755447070,-187.78006525,0.00029833,2]
[400635610,1767755447080,-160.56089558,0.00029833,2]
[400635612,1767755447089,-151.0,0.00029833,2]
[400635614,1767755447099,-250.0,0.00029833,2]
[400635616,1767755447109,-151.0,0.00029833,2]
[400635618,1767755447119,-151.31081408,0.00029833,2]
[400635620,1767755447128,-500.0,0.00029833,2]
[400635621,1767755447138,-250.0,0.00029833,2]
[400635623,1767755447147,-500.0,0.00029833,2]
[400635625,1767755447158,-252.94566259,0.00029833,2]
[400635627,1767755447168,-500.0,0.00029833,2]
[400635629,1767755447177,-500.0,0.00029833,2]
[400635631,1767755447186,-502.77504224,0.00029833,2]
[400635633,1767755447195,-151.0,0.00029833,2]
[400635635,1767755447205,-514.84070869,0.00029833,2]
[400635637,1767755447214,-2487.15318209,0.00029833,2]
[400635639,1767755447224,-30000.0,0.00029833,2]
[400635655,1767755447234,-151.0,0.00029833,2]
[400635657,1767755447389,-151.0,0.00029833,2]
[400635659,1767755447399,-151.0,0.00029833,2]
[400635661,1767755447409,-157.242965,0.00029833,2]
[400635663,1767755447421,-156.587,0.00029833,2]
[400635665,1767755447430,-151.76560532,0.00029833,2]
[400635667,1767755447439,-1500.0,0.00029833,2]
[400635669,1767755447449,-250.0,0.00029833,2]
[400635671,1767755447458,-1500.0,0.00029833,2]
[400635673,1767755447467,-250.0,0.00029833,2]
[400635675,1767755447476,-1500.0,0.00029833,2]
[400635677,1767755447486,-250.0,0.00029833,2]
[400635679,1767755447495,-1500.0,0.00029833,2]
[400635681,1767755447504,-250.0,0.00029833,2]
[400635683,1767755447514,-1500.0,0.00029833,2]
[400635685,1767755447524,-250.0,0.00029833,2]
[400635687,1767755447534,-1500.0,0.00029833,2]
[400635689,1767755447545,-250.0,0.00029833,2]
[400635691,1767755447555,-188.67967802,0.00029833,4]
[400635693,1767755447570,-2300.0,0.00029847,7]
[400635695,1767755447579,-5000.0,0.00029939,2]
[400635697,1767755447589,-10000.0,0.00029999,30]
[400635699,1767755447599,-184.0,0.0003,14]
[400635700,1767755447608,-166.0,0.0003,14]
[400635703,1767755447619,-1019.0,0.0003,7]
[400635704,1767755447630,-507.0,0.0003,14]
[400635706,1767755447640,-1041.66666667,0.0003,30]
[400635708,1767755447649,-240.213887,0.00030012,60]
[400635710,1767755447659,-216.949,0.00030026,24]
[400635712,1767755447669,-3501.07853577,0.00030034,30]
[400635714,1767755447681,-2300.0,0.00030067,7]
[400635716,1767755447691,-489.84,0.000301,2]
[400635718,1767755447700,-1615.48,0.00030136,6]
[400635720,1767755447710,-1150.0,0.00030137,5]
[400635722,1767755447720,-500.0,0.00030137,15]
[400635724,1767755447730,-650.0,0.00030137,5]
[400635726,1767755447740,-650.0,0.00030137,5]
[400635727,1767755447750,-500.0,0.00030156,7]
[400635729,1767755447760,-500.0,0.00030198,7]
[400635731,1767755447769,-322.65,0.000302,7]
[400635733,1767755447778,-303.84,0.000302,7]
[400635735,1767755447788,-2000.0,0.00030257,7]
[400635737,1767755447798,-2300.0,0.00030273,7]
[400635739,1767755447807,-2385.21,0.000303,7]
[400635741,1767755447816,-151.0,0.00030381,2]
[400635743,1767755447825,-533.88981491,0.00030381,2]
[400635745,1767755447835,-2579.17784983,0.00030381,2]
[400635747,1767755447844,-24160.18408481,0.00030381,2]
[400635749,1767755447854,-507.0,0.00030411,14]
[400635751,1767755447863,-2300.0,0.00030445,7]
[400635753,1767755447873,-1000.0,0.00030547,30]
[400635755,1767755447882,-1000.0,0.00030547,30]
[400635757,1767755447892,-579.0,0.00030547,30]
[400635759,1767755447901,-28848.38,0.000306,2]
[400635760,1767755447910,-2300.0,0.00030605,7]
[400635762,1767755447920,-500.0,0.00030625,7]
[400635764,1767755447930,-1299.19626571,0.00030685,5]
[400635767,1767755447940,-500.0,0.00030685,15]
[400635769,1767755447950,-507.0,0.00030685,14]
[400635771,1767755447960,-750.0,0.00030685,5]
[400635773,1767755447970,-750.65512167,0.00030685,5]
[400635774,1767755447980,-500.0,0.00030731,7]
[400635776,1767755447990,-379.39,0.0003074,2]
[400635778,1767755447999,-523.46706232,0.00030803,2]
[400635780,1767755448009,-500.0,0.00030863,7]
[400635782,1767755448018,-5000.0,0.00030868,2]
[400635784,1767755448028,-8469.53466117,0.0003091,2]
[400635786,1767755448038,-152.42996206,0.00030929,2]
[400635788,1767755448047,-571.52045381,0.00030929,2]
[400635790,1767755448056,-2674.60743027,0.00030929,2]
[400635792,1767755448065,-689.7,0.00030958,30]
[400635794,1767755448075,-507.0,0.00030959,14]
[400635796,1767755448084,-1940.0720269,0.00030974,10]
[400635808,1767755448239,-790.205655,0.000249,7]
[400635809,1767755448249,-59.9279731,0.00030974,10]
[400635810,1767755448258,-2000.0,0.00030982,10]
[400635811,1767755448266,-2000.0,0.00030991,10]
[400635812,1767755448276,-190.27089289,0.00031,120]
[400635813,1767755448286,-188.78673029,0.00031,120]
[400635814,1767755448295,-172.60461298,0.00031,120]
[400635815,1767755448304,-206.91086703,0.00031,120]
[400635816,1767755448313,-164.04291735,0.00031,120]
[400635817,1767755448322,-186.03170411,0.00031,120]
[400635818,1767755448331,-176.11325056,0.00031,120]
[400635819,1767755448340,-163.98489072,0.00031,120]
[400635820,1767755448349,-194.89245098,0.00031,120]
[400635821,1767755448358,-613.56156713,0.00031,120]
[400635822,1767755448367,-2000.0,0.00031,10]
[400635823,1767755448376,-1041.66666667,0.00031,10]
[400635824,1767755448385,-814.437021,0.00031,31]
[400635825,1767755448395,-814.437021,0.00031,31]
[400635826,1767755448405,-814.437021,0.00031,31]
[400635827,1767755448414,-814.437021,0.00031,31]
[400635828,1767755448423,-151.0,0.00031,31]
[400635829,1767755448431,-151.0,0.00031,31]
[400635830,1767755448441,-151.0,0.00031,31]
[400635831,1767755448450,-151.0,0.00031,31]
[400635832,1767755448459,-151.0,0.00031,31]
[400635833,1767755448468,-151.0,0.00031,31]
[400635834,1767755448479,-151.0,0.00031,31]
[400635835,1767755448488,-151.0,0.00031,31]
[400635836,1767755448497,-2117.252513,0.00031,31]
[400635837,1767755448506,-2117.252513,0.00031,31]
[400635838,1767755448515,-1019.0,0.00031,7]
[400635839,1767755448524,-2117.252513,0.00031,31]
[400635840,1767755448533,-2117.252513,0.00031,31]
[400635841,1767755448542,-1270.137933,0.00031,31]
[400635842,1767755448551,-1270.137933,0.00031,31]
[400635843,1767755448560,-1270.137933,0.00031,31]
[400635844,1767755448569,-1270.137933,0.00031,31]
[400635845,1767755448579,-2000.0,0.00031069,7]
[400635846,1767755448589,-500.0,0.00031091,7]
[400635847,1767755448598,-519.1,0.00031117,4]
[400635848,1767755448607,-167.77,0.000312,7]
[400635849,1767755448615,-194.72792766,0.00031202,2]
[400635850,1767755448625,-151.0,0.00031202,2]
[400635851,1767755448634,-507.0,0.00031233,14]
[400635852,1767755448643,-500.0,0.00031233,15]
[400635854,1767755448652,-850.0,0.00031233,5]
[400635856,1767755448662,-2750.64,0.000314,14]
[400635858,1767755448671,-3840.91283351,0.0003147,32]
[400635860,1767755448685,-2773.56790519,0.00031477,2]
[400635862,1767755448695,-689.7,0.00031506,31]
[400635864,1767755448707,-246.267723,0.00031506,31]
[400635866,1767755448717,-246.267723,0.00031506,31]
[400635868,1767755448727,-246.267723,0.00031506,31]
[400635870,1767755448738,-246.267723,0.00031506,31]
[400635872,1767755448747,-342.903353,0.00031506,31]
[400635874,1767755448757,-342.903353,0.00031506,31]
[400635876,1767755448766,-342.903353,0.00031506,31]
[400635878,1767755448776,-342.903353,0.00031506,31]
[400635880,1767755448785,-151.0,0.00031506,31]
[400635882,1767755448795,-2600.536544,0.00031506,31]
[400635884,1767755448805,-2600.536544,0.00031506,31]
[400635886,1767755448815,-449.104289,0.00031506,8]
[400635888,1767755448824,-430.552519,0.00031506,31]
[400635890,1767755448834,-449.104289,0.00031506,8]
[400635892,1767755448843,-430.552519,0.00031506,31]
[400635894,1767755448852,-449.104289,0.00031506,8]
[400635896,1767755448862,-430.552519,0.00031506,31]
[400635898,1767755448871,-430.552519,0.00031506,31]
[400635900,1767755448880,-449.104289,0.00031506,8]
[400635902,1767755448889,-285.036725,0.00031506,31]
[400635904,1767755448898,-285.036725,0.00031506,31]
[400635906,1767755448907,-285.036725,0.00031506,31]
[400635908,1767755448917,-1615.48,0.00031506,8]
[400635909,1767755448926,-285.036725,0.00031506,31]
[400635911,1767755448936,-151.0,0.00031506,31]
[400635913,1767755448947,-151.0,0.00031506,31]